[Event "*** MasterClass Titled Tuesday Blitz"]
[Site "Chess.com"]
[Date "2017.08.01"]
[Round "8"]
[White "HouseOfDurin"]
[Black "dmjjmd"]
[Result "1-0"]
[WhiteElo "1898"]
[BlackElo "2126"]
[TimeControl "180+2"]
[EndTime "14:47:07 PDT"]
[Termination "HouseOfDurin won by resignation"]

1. d4 {[%clk 0:03:00.7]} 1... Nf6 {[%clk 0:03:00]} 2. Bg5 {[%clk 0:03:01.6]}
2... d5 {[%clk 0:03:00.6]} 3. Bxf6 {[%clk 0:03:00.9]} 3... gxf6 {[%clk
0:03:00.9]} 4. c4 {[%clk 0:03:01.8]} 4... c5 {[%clk 0:03:00.8]} 5. cxd5 {[%clk
0:02:57.9]} 5... Qxd5 {[%clk 0:02:58.1]} 6. Nf3 {[%clk 0:02:56]} 6... Nc6 {[%clk
0:02:56.7]} 7. Nc3 {[%clk 0:02:54.7]} 7... Qd8 {[%clk 0:02:54]} 8. d5 {[%clk
0:02:47.6]} 8... Ne5 {[%clk 0:02:55]} 9. Nxe5 {[%clk 0:02:42.4]} 9... fxe5
{[%clk 0:02:56.9]} 10. e4 {[%clk 0:02:43]} 10... Bg7 {[%clk 0:02:54.6]} 11. Bc4
{[%clk 0:02:03.8]} 11... O-O {[%clk 0:02:56.5]} 12. O-O {[%clk 0:02:04.1]} 12...
a6 {[%clk 0:02:57.2]} 13. a4 {[%clk 0:02:04.5]} 13... Qd6 {[%clk 0:02:57.2]} 14.
a5 {[%clk 0:01:55.7]} 14... Kh8 {[%clk 0:02:53.5]} 15. Qb3 {[%clk 0:01:34.8]}
15... Rg8 {[%clk 0:02:52.9]} 16. Qb6 {[%clk 0:01:35]} 16... Bh6 {[%clk 0:02:48]}
17. Kh1 {[%clk 0:01:22.5]} 17... Bd7 {[%clk 0:02:43.3]} 18. f3 {[%clk
0:01:05.1]} 18... Bf4 {[%clk 0:02:42.7]} 19. g3 {[%clk 0:00:49.2]} 19... Be3
{[%clk 0:02:39.4]} 20. Rae1 {[%clk 0:00:40.3]} 20... Bd2 {[%clk 0:02:36.9]} 21.
Re2 {[%clk 0:00:41.2]} 21... Bxc3 {[%clk 0:02:38.1]} 22. bxc3 {[%clk 0:00:42.3]}
22... Rg5 {[%clk 0:02:39.5]} 23. Qxd6 {[%clk 0:00:27.3]} 23... exd6 {[%clk
0:02:39.6]} 24. f4 {[%clk 0:00:29.2]} 24... Rg7 {[%clk 0:02:32.1]} 25. fxe5
{[%clk 0:00:26.4]} 25... Bh3 {[%clk 0:02:33.7]} 26. Rf6 {[%clk 0:00:22.3]} 26...
dxe5 {[%clk 0:02:35.6]} 27. Ref2 {[%clk 0:00:22.5]} 27... Rf8 {[%clk 0:02:30]}
28. d6 {[%clk 0:00:18.8]} 28... Rg4 {[%clk 0:02:31.1]} 29. Bd5 {[%clk
0:00:18.5]} 29... Rg6 {[%clk 0:02:29.6]} 30. Rxf7 {[%clk 0:00:17.3]} 30... Rxf7
{[%clk 0:02:29.7]} 31. Rxf7 {[%clk 0:00:17.8]} 31... Rxd6 {[%clk 0:02:31.3]} 32.
Rxb7 {[%clk 0:00:18.3]} 32... Bg4 {[%clk 0:02:28.3]} 33. Rb8+ {[%clk 0:00:17.7]}
33... Kg7 {[%clk 0:02:29.6]} 34. Rg8+ {[%clk 0:00:18.9]} 34... Kf6 {[%clk
0:02:30.9]} 35. Rxg4 {[%clk 0:00:20.8]} 1-0

[Event "*** MasterClass Titled Tuesday Blitz"]
[Site "Chess.com"]
[Date "2017.08.01"]
[Round "8"]
[White "Malev212"]
[Black "HaryKane"]
[Result "1-0"]
[WhiteElo "2492"]
[BlackElo "2290"]
[TimeControl "180+2"]
[EndTime "14:47:19 PDT"]
[Termination "Malev212 won by resignation"]

1. e4 {[%clk 0:03:01.9]} 1... e6 {[%clk 0:03:00.4]} 2. d4 {[%clk 0:03:01.2]}
2... d5 {[%clk 0:03:00.8]} 3. exd5 {[%clk 0:03:02.8]} 3... exd5 {[%clk
0:03:01.2]} 4. Nf3 {[%clk 0:03:04.3]} 4... Bd6 {[%clk 0:03:00.1]} 5. Bd3 {[%clk
0:03:03.7]} 5... Bg4 {[%clk 0:02:59.6]} 6. h3 {[%clk 0:02:58.2]} 6... Bh5 {[%clk
0:02:56.6]} 7. g4 {[%clk 0:02:55.1]} 7... Bg6 {[%clk 0:02:57]} 8. Bxg6 {[%clk
0:02:55.5]} 8... hxg6 {[%clk 0:02:58.9]} 9. Qe2+ {[%clk 0:02:56.1]} 9... Ne7
{[%clk 0:02:59.3]} 10. Nc3 {[%clk 0:02:35.3]} 10... c6 {[%clk 0:02:47.5]} 11.
Bd2 {[%clk 0:02:30.1]} 11... Nd7 {[%clk 0:02:43.6]} 12. Ne5 {[%clk 0:02:25.9]}
12... Qc7 {[%clk 0:02:29.8]} 13. f4 {[%clk 0:02:25.4]} 13... O-O-O {[%clk
0:02:18.3]} 14. Nxf7 {[%clk 0:02:24.2]} 14... Bxf4 {[%clk 0:02:13]} 15. Nxh8
{[%clk 0:02:21.9]} 15... Bg3+ {[%clk 0:02:12.5]} 16. Kd1 {[%clk 0:02:21.7]}
16... Nf6 {[%clk 0:02:03.1]} 17. Nf7 {[%clk 0:02:20.5]} 17... Re8 {[%clk
0:02:04.1]} 18. Rf1 {[%clk 0:01:55.5]} 18... Bh4 {[%clk 0:01:48.2]} 19. Ne5
{[%clk 0:01:54.4]} 19... g5 {[%clk 0:01:40.9]} 20. a4 {[%clk 0:01:50.5]} 20...
Ng6 {[%clk 0:01:28.5]} 21. a5 {[%clk 0:01:48.9]} 21... Nxe5 {[%clk 0:01:25.9]}
22. dxe5 {[%clk 0:01:49.2]} 22... Rxe5 {[%clk 0:01:27.8]} 23. Qd3 {[%clk
0:01:46.2]} 23... Qd6 {[%clk 0:01:22.5]} 24. a6 {[%clk 0:01:45.5]} 24... b6
{[%clk 0:01:22.4]} 25. Qd4 {[%clk 0:01:34.1]} 25... c5 {[%clk 0:01:08]} 26. Nb5
{[%clk 0:01:32]} 26... Qe6 {[%clk 0:01:03.6]} 27. Nxa7+ {[%clk 0:01:30.1]} 27...
Kc7 {[%clk 0:00:52.9]} 28. Nb5+ {[%clk 0:01:29.4]} 28... Kc6 {[%clk 0:00:54.2]}
29. Qa4 {[%clk 0:01:29.6]} 1-0

[Event "*** MasterClass Titled Tuesday Blitz"]
[Site "Chess.com"]
[Date "2017.08.01"]
[Round "8"]
[White "hermionegrangermagic"]
[Black "attack2mateU"]
[Result "1-0"]
[WhiteElo "2383"]
[BlackElo "2495"]
[TimeControl "180+2"]
[EndTime "14:48:00 PDT"]
[Termination "hermionegrangermagic won by resignation"]

1. e4 {[%clk 0:03:00.6]} 1... c5 {[%clk 0:02:59.8]} 2. Nf3 {[%clk 0:03:01.2]}
2... d6 {[%clk 0:03:01.3]} 3. d4 {[%clk 0:03:02.4]} 3... cxd4 {[%clk 0:03:03.2]}
4. Nxd4 {[%clk 0:03:03.8]} 4... Nf6 {[%clk 0:03:04.4]} 5. Nc3 {[%clk 0:03:05.2]}
5... a6 {[%clk 0:03:05.6]} 6. a4 {[%clk 0:03:05.3]} 6... e6 {[%clk 0:03:03.9]}
7. Be2 {[%clk 0:03:04.7]} 7... Nc6 {[%clk 0:02:54.7]} 8. O-O {[%clk 0:02:58.3]}
8... Be7 {[%clk 0:02:55.1]} 9. Be3 {[%clk 0:02:57.9]} 9... O-O {[%clk
0:02:54.9]} 10. Kh1 {[%clk 0:02:54.5]} 10... Qc7 {[%clk 0:02:50.6]} 11. f4
{[%clk 0:02:43.2]} 11... Bd7 {[%clk 0:02:48.3]} 12. Qe1 {[%clk 0:02:38.7]} 12...
Nxd4 {[%clk 0:02:26.6]} 13. Bxd4 {[%clk 0:02:38.4]} 13... e5 {[%clk 0:02:28.2]}
14. fxe5 {[%clk 0:02:28.7]} 14... dxe5 {[%clk 0:02:26.8]} 15. Qg3 {[%clk
0:02:29.1]} 15... Bc6 {[%clk 0:01:00.2]} 16. Bxe5 {[%clk 0:02:26.3]} 16... Qd8
{[%clk 0:00:44.1]} 17. Rad1 {[%clk 0:02:25]} 17... Bd7 {[%clk 0:00:41]} 18. Rxd7
{[%clk 0:01:47.3]} 18... Qxd7 {[%clk 0:00:41.2]} 19. Rxf6 {[%clk 0:01:33.8]}
19... Bxf6 {[%clk 0:00:30.4]} 20. Bxf6 {[%clk 0:01:32.8]} 20... g6 {[%clk
0:00:31.4]} 21. Qg5 {[%clk 0:00:56.9]} 21... Qe6 {[%clk 0:00:21.3]} 22. Nd5
{[%clk 0:00:50.4]} 1-0

[Event "*** MasterClass Titled Tuesday Blitz"]
[Site "Chess.com"]
[Date "2017.08.01"]
[Round "8"]
[White "silverback96"]
[Black "prochn"]
[Result "0-1"]
[WhiteElo "2125"]
[BlackElo "2293"]
[TimeControl "180+2"]
[EndTime "14:48:14 PDT"]
[Termination "prochn won by checkmate"]

1. d4 {[%clk 0:03:01.9]} 1... d5 {[%clk 0:03:00.6]} 2. c4 {[%clk 0:03:03.8]}
2... c6 {[%clk 0:03:00.8]} 3. Nf3 {[%clk 0:03:05.2]} 3... Nf6 {[%clk 0:03:01.9]}
4. Nc3 {[%clk 0:03:05.7]} 4... dxc4 {[%clk 0:03:02.6]} 5. a4 {[%clk 0:03:04]}
5... Bf5 {[%clk 0:03:03.3]} 6. Ne5 {[%clk 0:03:04.2]} 6... Nbd7 {[%clk
0:03:04.3]} 7. Nxc4 {[%clk 0:03:04.8]} 7... Qc7 {[%clk 0:03:05.6]} 8. g3 {[%clk
0:03:05.8]} 8... e5 {[%clk 0:03:06.8]} 9. dxe5 {[%clk 0:03:05.7]} 9... Nxe5
{[%clk 0:03:07.9]} 10. Bf4 {[%clk 0:03:06.9]} 10... Nfd7 {[%clk 0:03:08.4]} 11.
Bg2 {[%clk 0:03:08.1]} 11... g5 {[%clk 0:03:08.8]} 12. Nxe5 {[%clk 0:03:09.3]}
12... gxf4 {[%clk 0:03:07.8]} 13. Nxd7 {[%clk 0:03:10.6]} 13... O-O-O {[%clk
0:03:07.3]} 14. Qd4 {[%clk 0:03:12.1]} 14... Qxd7 {[%clk 0:03:02.4]} 15. Qxf4
{[%clk 0:03:07.2]} 15... Bd6 {[%clk 0:02:42.9]} 16. Qe3 {[%clk 0:03:07.6]} 16...
Rhe8 {[%clk 0:02:34.4]} 17. Qxa7 {[%clk 0:03:07.7]} 17... Bb8 {[%clk 0:02:35.3]}
18. Qc5 {[%clk 0:02:53.4]} 18... Qd2+ {[%clk 0:02:30.5]} 19. Kf1 {[%clk
0:02:54.5]} 19... Re5 {[%clk 0:02:23]} 20. Qb6 {[%clk 0:02:47.9]} 20... Bc7
{[%clk 0:01:44.9]} 21. Qa7 {[%clk 0:02:46.7]} 21... Rxe2 {[%clk 0:01:39]} 22.
Bxc6 {[%clk 0:02:30.2]} 22... Bh3+ {[%clk 0:01:20.5]} 23. Bg2 {[%clk 0:02:14.6]}
23... Bxg2+ {[%clk 0:00:35]} 24. Kxg2 {[%clk 0:02:15.4]} 24... b6 {[%clk
0:00:23.5]} 25. Qa8+ {[%clk 0:02:15.2]} 25... Kd7 {[%clk 0:00:21.3]} 26. Rad1
{[%clk 0:02:14.6]} 26... Rxf2+ {[%clk 0:00:16.5]} 27. Kh3 {[%clk 0:02:11]} 27...
Rxa8 {[%clk 0:00:17.4]} 28. Rxd2+ {[%clk 0:02:12.5]} 28... Rxd2 {[%clk
0:00:18.4]} 29. b3 {[%clk 0:02:12.7]} 29... Be5 {[%clk 0:00:17.7]} 30. Nb5
{[%clk 0:02:11.6]} 30... Rd3 {[%clk 0:00:16.9]} 31. Re1 {[%clk 0:02:12.1]} 31...
f6 {[%clk 0:00:17.7]} 32. Rb1 {[%clk 0:02:10.3]} 32... Rc8 {[%clk 0:00:17.2]}
33. Kg4 {[%clk 0:02:09.3]} 33... Rc2 {[%clk 0:00:16.4]} 34. b4 {[%clk 0:02:07]}
34... Rb2 {[%clk 0:00:14.4]} 35. Rc1 {[%clk 0:02:00.2]} 35... Rxb4+ {[%clk
0:00:15]} 36. Kf5 {[%clk 0:01:56.6]} 36... Rxa4 {[%clk 0:00:15.3]} 37. g4 {[%clk
0:01:54.2]} 37... Rf3# {[%clk 0:00:16.3]} 0-1

[Event "*** MasterClass Titled Tuesday Blitz"]
[Site "Chess.com"]
[Date "2017.08.01"]
[Round "8"]
[White "nekochabo"]
[Black "Rumpel-VK"]
[Result "0-1"]
[WhiteElo "2538"]
[BlackElo "2488"]
[TimeControl "180+2"]
[EndTime "14:48:19 PDT"]
[Termination "Rumpel-VK won by resignation"]

1. Nf3 {[%clk 0:03:01.9]} 1... d5 {[%clk 0:02:59.9]} 2. g3 {[%clk 0:03:03.2]}
2... Bg4 {[%clk 0:02:50.6]} 3. Bg2 {[%clk 0:03:04.4]} 3... Nd7 {[%clk
0:02:51.5]} 4. O-O {[%clk 0:03:05.3]} 4... e6 {[%clk 0:02:52.1]} 5. c4 {[%clk
0:03:03.6]} 5... c6 {[%clk 0:02:52.4]} 6. cxd5 {[%clk 0:03:04.9]} 6... exd5
{[%clk 0:02:50.4]} 7. d3 {[%clk 0:03:06.1]} 7... Ngf6 {[%clk 0:02:50.3]} 8. h3
{[%clk 0:03:00.8]} 8... Bxf3 {[%clk 0:02:45.2]} 9. Bxf3 {[%clk 0:03:02.1]} 9...
Bc5 {[%clk 0:02:45.8]} 10. d4 {[%clk 0:02:57.4]} 10... Bd6 {[%clk 0:02:46]} 11.
Nc3 {[%clk 0:02:58.7]} 11... O-O {[%clk 0:02:46.2]} 12. h4 {[%clk 0:02:55.6]}
12... Re8 {[%clk 0:02:46.2]} 13. Kg2 {[%clk 0:02:51.1]} 13... Ne4 {[%clk
0:02:43.9]} 14. h5 {[%clk 0:02:26.5]} 14... f5 {[%clk 0:02:32]} 15. e3 {[%clk
0:02:27.7]} 15... Qg5 {[%clk 0:02:22.8]} 16. Nxe4 {[%clk 0:02:19.2]} 16... fxe4
{[%clk 0:02:19.3]} 17. Be2 {[%clk 0:02:20.2]} 17... Rf8 {[%clk 0:02:18]} 18. Bd2
{[%clk 0:02:17.3]} 18... Rf6 {[%clk 0:01:56.2]} 19. Be1 {[%clk 0:02:01.1]} 19...
Raf8 {[%clk 0:01:56.2]} 20. Rh1 {[%clk 0:01:49.6]} 20... h6 {[%clk 0:01:12.1]}
21. Rh3 {[%clk 0:01:49.8]} 21... R8f7 {[%clk 0:00:58.5]} 22. a4 {[%clk
0:01:49.5]} 22... Nf8 {[%clk 0:00:57.7]} 23. a5 {[%clk 0:01:50.8]} 23... a6
{[%clk 0:00:55.2]} 24. Rc1 {[%clk 0:01:52.1]} 24... Nh7 {[%clk 0:00:52.2]} 25.
Bg4 {[%clk 0:01:31.5]} 25... Kh8 {[%clk 0:00:47.7]} 26. Rc2 {[%clk 0:01:04.7]}
26... Rf3 {[%clk 0:00:47]} 27. Bxf3 {[%clk 0:00:52.8]} 27... exf3+ {[%clk
0:00:47.8]} 28. Kh2 {[%clk 0:00:39.7]} 28... Nf6 {[%clk 0:00:47.2]} 29. Rh4
{[%clk 0:00:37.9]} 29... Qxh4+ {[%clk 0:00:43.8]} 0-1

[Event "*** MasterClass Titled Tuesday Blitz"]
[Site "Chess.com"]
[Date "2017.08.01"]
[Round "8"]
[White "GMMarcinDziuba"]
[Black "XDPS"]
[Result "1-0"]
[WhiteElo "2557"]
[BlackElo "2524"]
[TimeControl "180+2"]
[EndTime "14:48:23 PDT"]
[Termination "GMMarcinDziuba won on time"]

1. d4 {[%clk 0:03:01.9]} 1... d5 {[%clk 0:03:00.5]} 2. c4 {[%clk 0:03:02.8]}
2... c6 {[%clk 0:03:00.8]} 3. Nf3 {[%clk 0:03:03]} 3... Nf6 {[%clk 0:03:02.4]}
4. Nc3 {[%clk 0:03:04.4]} 4... e6 {[%clk 0:03:03]} 5. g3 {[%clk 0:03:04.4]} 5...
Nbd7 {[%clk 0:03:02.6]} 6. Bg2 {[%clk 0:03:05.9]} 6... dxc4 {[%clk 0:03:01.7]}
7. a4 {[%clk 0:03:06.3]} 7... Bb4 {[%clk 0:02:59.9]} 8. O-O {[%clk 0:03:07.2]}
8... O-O {[%clk 0:03:00.3]} 9. Qc2 {[%clk 0:03:08.3]} 9... a5 {[%clk 0:03:00]}
10. Rd1 {[%clk 0:03:09.2]} 10... b6 {[%clk 0:03:00.7]} 11. Ne5 {[%clk
0:03:06.7]} 11... Nxe5 {[%clk 0:02:56.7]} 12. dxe5 {[%clk 0:03:07.5]} 12... Nd5
{[%clk 0:02:58.3]} 13. e4 {[%clk 0:03:06.5]} 13... Qe7 {[%clk 0:02:58.4]} 14.
exd5 {[%clk 0:03:07.5]} 14... exd5 {[%clk 0:02:59.8]} 15. Bf4 {[%clk 0:03:00.3]}
15... g5 {[%clk 0:02:57.9]} 16. Be3 {[%clk 0:03:00.8]} 16... Rb8 {[%clk
0:02:50.6]} 17. Qd2 {[%clk 0:02:51.9]} 17... h6 {[%clk 0:02:49.8]} 18. f4 {[%clk
0:02:44.3]} 18... g4 {[%clk 0:02:48]} 19. Qf2 {[%clk 0:02:41.5]} 19... Bf5
{[%clk 0:02:46.6]} 20. Ne2 {[%clk 0:02:29.3]} 20... Bc5 {[%clk 0:02:35.6]} 21.
Nd4 {[%clk 0:02:28.6]} 21... Bxd4 {[%clk 0:02:36.7]} 22. Bxd4 {[%clk 0:02:29.7]}
22... c5 {[%clk 0:02:38.4]} 23. Bc3 {[%clk 0:02:20.1]} 23... d4 {[%clk
0:02:39.1]} 24. Bd2 {[%clk 0:02:18.2]} 24... Rfd8 {[%clk 0:02:36.7]} 25. Qe1
{[%clk 0:02:18.4]} 25... Qe6 {[%clk 0:02:21.1]} 26. Be4 {[%clk 0:02:19.2]} 26...
Qg6 {[%clk 0:02:14.6]} 27. Bxf5 {[%clk 0:02:19.1]} 27... Qxf5 {[%clk 0:02:16.5]}
28. Qe2 {[%clk 0:02:18.7]} 28... d3 {[%clk 0:02:04.4]} 29. Qe3 {[%clk
0:02:09.4]} 29... Rd4 {[%clk 0:02:04.6]} 30. Re1 {[%clk 0:02:09.5]} 30... Qe6
{[%clk 0:01:38.1]} 31. Rad1 {[%clk 0:02:08.4]} 31... Qc6 {[%clk 0:01:23.1]} 32.
Bc3 {[%clk 0:02:08.5]} 32... Rd5 {[%clk 0:00:50.3]} 33. f5 {[%clk 0:02:07.2]}
33... Kh7 {[%clk 0:00:46]} 34. Rd2 {[%clk 0:02:06]} 34... Qxa4 {[%clk 0:00:43]}
35. Rf1 {[%clk 0:02:05.9]} 35... Re8 {[%clk 0:00:39.9]} 36. e6 {[%clk
0:02:01.5]} 36... Qc6 {[%clk 0:00:31]} 37. Rdf2 {[%clk 0:02:01.9]} 37... b5
{[%clk 0:00:21.2]} 38. Bd2 {[%clk 0:02:01.3]} 38... Qc7 {[%clk 0:00:08.1]} 39.
Qxh6+ {[%clk 0:02:01.4]} 39... Kg8 {[%clk 0:00:09.6]} 40. f6 {[%clk 0:02:01.4]}
1-0

[Event "*** MasterClass Titled Tuesday Blitz"]
[Site "Chess.com"]
[Date "2017.08.01"]
[Round "8"]
[White "MartinMatthiesen"]
[Black "Chess64Surfer"]
[Result "1-0"]
[WhiteElo "2224"]
[BlackElo "2044"]
[TimeControl "180+2"]
[EndTime "14:48:39 PDT"]
[Termination "MartinMatthiesen won by resignation"]

1. d4 {[%clk 0:03:01.9]} 1... d6 {[%clk 0:02:58.5]} 2. e4 {[%clk 0:03:01.6]}
2... Nf6 {[%clk 0:02:58.8]} 3. Nc3 {[%clk 0:03:01.6]} 3... g6 {[%clk 0:02:59.4]}
4. Nf3 {[%clk 0:02:57.3]} 4... c6 {[%clk 0:02:59.2]} 5. Be2 {[%clk 0:02:53.4]}
5... b5 {[%clk 0:02:59.2]} 6. e5 {[%clk 0:02:52.2]} 6... Nfd7 {[%clk 0:02:50]}
7. Bf4 {[%clk 0:02:48.7]} 7... dxe5 {[%clk 0:02:40]} 8. Nxe5 {[%clk 0:02:48.7]}
8... Bg7 {[%clk 0:02:37.3]} 9. Bf3 {[%clk 0:02:29.7]} 9... Nxe5 {[%clk
0:02:29.9]} 10. Bxe5 {[%clk 0:02:29.7]} 10... Bxe5 {[%clk 0:02:24.8]} 11. dxe5
{[%clk 0:02:29.9]} 11... O-O {[%clk 0:02:23.9]} 12. Qxd8 {[%clk 0:02:24.4]}
12... Rxd8 {[%clk 0:02:23.6]} 13. Nxb5 {[%clk 0:02:25.9]} 13... Na6 {[%clk
0:02:05.2]} 14. Bxc6 {[%clk 0:02:07.5]} 14... Rb8 {[%clk 0:02:01.7]} 15. c3
{[%clk 0:01:35]} 15... Rb6 {[%clk 0:01:30.7]} 16. Nxa7 {[%clk 0:01:34]} 16...
Bf5 {[%clk 0:01:28]} 17. b4 {[%clk 0:01:08.2]} 17... Bd3 {[%clk 0:01:20.2]} 18.
O-O-O {[%clk 0:01:08.2]} 18... Nb8 {[%clk 0:00:30.2]} 19. Bb5 {[%clk 0:01:00.7]}
19... Rb7 {[%clk 0:00:18.7]} 20. Rxd3 {[%clk 0:00:59.6]} 20... Rxd3 {[%clk
0:00:18.5]} 21. Bxd3 {[%clk 0:01:01.1]} 21... Rxa7 {[%clk 0:00:19.6]} 22. Kb2
{[%clk 0:01:02.2]} 22... Nc6 {[%clk 0:00:20.1]} 23. f4 {[%clk 0:01:02.8]} 23...
f6 {[%clk 0:00:20.8]} 24. Be4 {[%clk 0:01:02.1]} 24... Nd8 {[%clk 0:00:18.8]}
25. Rd1 {[%clk 0:01:02.1]} 25... Ne6 {[%clk 0:00:19.7]} 26. Bd5 {[%clk
0:01:02.4]} 26... Kf7 {[%clk 0:00:20.7]} 27. g4 {[%clk 0:01:03.4]} 27... fxe5
{[%clk 0:00:20.3]} 28. f5 {[%clk 0:01:04.2]} 28... gxf5 {[%clk 0:00:18]} 29.
gxf5 {[%clk 0:01:04.4]} 29... Kf6 {[%clk 0:00:19.2]} 30. fxe6 {[%clk 0:01:05.7]}
30... Ra6 {[%clk 0:00:18.1]} 31. b5 {[%clk 0:01:05.6]} 31... Rb6 {[%clk
0:00:18.7]} 32. c4 {[%clk 0:01:06.9]} 1-0

[Event "*** MasterClass Titled Tuesday Blitz"]
[Site "Chess.com"]
[Date "2017.08.01"]
[Round "8"]
[White "toad"]
[Black "GMKrikor"]
[Result "0-1"]
[WhiteElo "2105"]
[BlackElo "2488"]
[TimeControl "180+2"]
[EndTime "14:48:54 PDT"]
[Termination "GMKrikor won on time"]

1. d4 {[%clk 0:03:01.9]} 1... Nf6 {[%clk 0:03:01]} 2. c4 {[%clk 0:03:03]} 2...
e6 {[%clk 0:03:02.1]} 3. g3 {[%clk 0:03:04.3]} 3... d5 {[%clk 0:02:57.3]} 4. Nf3
{[%clk 0:03:05]} 4... Bb4+ {[%clk 0:02:56.6]} 5. Bd2 {[%clk 0:03:05.9]} 5... Be7
{[%clk 0:02:57.9]} 6. Bg2 {[%clk 0:03:07.5]} 6... O-O {[%clk 0:02:59.2]} 7. O-O
{[%clk 0:03:08.6]} 7... Nbd7 {[%clk 0:03:00.7]} 8. Qc2 {[%clk 0:03:07.6]} 8...
Ne4 {[%clk 0:03:00.9]} 9. Bf4 {[%clk 0:03:07.9]} 9... c6 {[%clk 0:03:02.2]} 10.
Nfd2 {[%clk 0:03:06.6]} 10... g5 {[%clk 0:02:53]} 11. Be3 {[%clk 0:02:52.4]}
11... Nd6 {[%clk 0:02:54]} 12. f3 {[%clk 0:02:37.5]} 12... Nf5 {[%clk
0:02:35.8]} 13. Bf2 {[%clk 0:02:37.6]} 13... Bf6 {[%clk 0:02:30.8]} 14. e3
{[%clk 0:02:36.7]} 14... b6 {[%clk 0:02:32.4]} 15. cxd5 {[%clk 0:02:27.5]} 15...
cxd5 {[%clk 0:02:31]} 16. Rc1 {[%clk 0:02:28.6]} 16... Ba6 {[%clk 0:02:31.6]}
17. Nc3 {[%clk 0:01:52.6]} 17... Bg7 {[%clk 0:01:59.1]} 18. Qa4 {[%clk
0:01:44.8]} 18... Bb7 {[%clk 0:02:00]} 19. Rc2 {[%clk 0:01:33.7]} 19... a6
{[%clk 0:02:00.8]} 20. b4 {[%clk 0:01:20.2]} 20... Rc8 {[%clk 0:01:49.2]} 21.
Rac1 {[%clk 0:01:20.2]} 21... Nd6 {[%clk 0:01:46.9]} 22. Qb3 {[%clk 0:01:18.1]}
22... b5 {[%clk 0:01:47.2]} 23. a4 {[%clk 0:01:17.8]} 23... Bc6 {[%clk
0:01:38.5]} 24. Bf1 {[%clk 0:01:09.9]} 24... Nc4 {[%clk 0:01:38]} 25. Bd3 {[%clk
0:00:28.7]} 25... Ndb6 {[%clk 0:01:35.7]} 26. a5 {[%clk 0:00:27.7]} 26... Nd7
{[%clk 0:01:36.7]} 27. Nf1 {[%clk 0:00:28.4]} 27... Bb7 {[%clk 0:01:36.8]} 28.
Re2 {[%clk 0:00:24.5]} 28... f5 {[%clk 0:01:32]} 29. Qb1 {[%clk 0:00:22.5]}
29... h6 {[%clk 0:01:30.6]} 30. Rce1 {[%clk 0:00:15.5]} 30... Qc7 {[%clk
0:01:25]} 31. Nd1 {[%clk 0:00:14.8]} 31... Qd6 {[%clk 0:01:23]} 32. Kg2 {[%clk
0:00:10.3]} 32... e5 {[%clk 0:01:21.8]} 33. dxe5 {[%clk 0:00:10.3]} 33... Ndxe5
{[%clk 0:01:22.5]} 34. Nd2 {[%clk 0:00:07]} 34... g4 {[%clk 0:01:17.1]} 35. Bxf5
{[%clk 0:00:05.3]} 35... gxf3+ {[%clk 0:01:17.3]} 36. Nxf3 {[%clk 0:00:05.9]}
36... Nxf3 {[%clk 0:01:18.8]} 37. Bxc8 {[%clk 0:00:02.4]} 37... Nxe1+ {[%clk
0:01:16.5]} 0-1

[Event "*** MasterClass Titled Tuesday Blitz"]
[Site "Chess.com"]
[Date "2017.08.01"]
[Round "8"]
[White "DavidMarkosyan"]
[Black "swayamsm"]
[Result "0-1"]
[WhiteElo "2476"]
[BlackElo "2450"]
[TimeControl "180+2"]
[EndTime "14:49:03 PDT"]
[Termination "swayamsm won by resignation"]

1. d4 {[%clk 0:03:01.9]} 1... Nf6 {[%clk 0:02:59.9]} 2. Bg5 {[%clk 0:03:00.5]}
2... Ne4 {[%clk 0:02:56.1]} 3. h4 {[%clk 0:03:00.5]} 3... h6 {[%clk 0:02:52.7]}
4. Bf4 {[%clk 0:03:01.1]} 4... d5 {[%clk 0:02:52.8]} 5. Nd2 {[%clk 0:03:01.2]}
5... Nxd2 {[%clk 0:02:48.9]} 6. Qxd2 {[%clk 0:03:02.1]} 6... Bf5 {[%clk
0:02:47.2]} 7. e3 {[%clk 0:03:02.9]} 7... e6 {[%clk 0:02:43.9]} 8. Bd3 {[%clk
0:03:03.1]} 8... Bxd3 {[%clk 0:02:44.5]} 9. Qxd3 {[%clk 0:03:04]} 9... Bd6
{[%clk 0:02:46.4]} 10. Bxd6 {[%clk 0:03:04.3]} 10... cxd6 {[%clk 0:02:45.7]} 11.
Nf3 {[%clk 0:03:03.5]} 11... Nc6 {[%clk 0:02:45.8]} 12. c3 {[%clk 0:03:04]}
12... Rb8 {[%clk 0:02:39.3]} 13. h5 {[%clk 0:03:00.4]} 13... O-O {[%clk
0:02:29.2]} 14. Rh3 {[%clk 0:02:58.1]} 14... e5 {[%clk 0:02:25]} 15. Qf5 {[%clk
0:02:53.6]} 15... e4 {[%clk 0:02:23.7]} 16. Nd2 {[%clk 0:02:45.4]} 16... Ne7
{[%clk 0:02:23.9]} 17. Qf4 {[%clk 0:02:42.9]} 17... f5 {[%clk 0:02:20.8]} 18.
Rg3 {[%clk 0:02:40.1]} 18... Kh8 {[%clk 0:02:20.4]} 19. Qh4 {[%clk 0:02:23.8]}
19... b5 {[%clk 0:02:11.8]} 20. a3 {[%clk 0:02:22.9]} 20... a5 {[%clk
0:02:12.8]} 21. f4 {[%clk 0:02:22.9]} 21... Rf6 {[%clk 0:01:45.4]} 22. Rh3
{[%clk 0:02:17.4]} 22... Qc7 {[%clk 0:01:27.7]} 23. g4 {[%clk 0:02:17.3]} 23...
fxg4 {[%clk 0:01:26.8]} 24. Qxg4 {[%clk 0:02:18.1]} 24... Nf5 {[%clk 0:01:28.1]}
25. Rc1 {[%clk 0:02:07.4]} 25... b4 {[%clk 0:01:27.7]} 26. axb4 {[%clk
0:02:06.9]} 26... axb4 {[%clk 0:01:27.7]} 27. c4 {[%clk 0:02:08.8]} 27... b3
{[%clk 0:01:11.3]} 28. Kd1 {[%clk 0:02:04.3]} 28... Rc8 {[%clk 0:00:47.2]} 29.
Rc3 {[%clk 0:01:59.4]} 29... Qa5 {[%clk 0:00:34.1]} 30. Nxb3 {[%clk 0:01:58.4]}
30... Qa4 {[%clk 0:00:33.7]} 31. c5 {[%clk 0:01:39.8]} 31... dxc5 {[%clk
0:00:26.6]} 32. dxc5 {[%clk 0:01:40.7]} 32... Rxc5 {[%clk 0:00:14.6]} 33. Rxc5
{[%clk 0:01:40.3]} 33... Qxb3+ {[%clk 0:00:16.1]} 34. Kc1 {[%clk 0:01:28]} 34...
Nxe3 {[%clk 0:00:16.2]} 35. Qc8+ {[%clk 0:01:17.1]} 35... Kh7 {[%clk 0:00:16.7]}
36. Rxe3 {[%clk 0:01:14.1]} 36... Qxe3+ {[%clk 0:00:18.6]} 37. Kb1 {[%clk
0:01:15.6]} 37... Qd3+ {[%clk 0:00:16.9]} 38. Ka2 {[%clk 0:01:15.7]} 38... Ra6+
{[%clk 0:00:15.7]} 39. Qxa6 {[%clk 0:01:15.8]} 39... Qxa6+ {[%clk 0:00:17.6]}
40. Kb1 {[%clk 0:01:16.4]} 40... Qd3+ {[%clk 0:00:18.3]} 41. Ka2 {[%clk
0:01:17.2]} 41... e3 {[%clk 0:00:19.6]} 42. Rc3 {[%clk 0:01:15.9]} 42... Qxc3
{[%clk 0:00:18.8]} 43. bxc3 {[%clk 0:01:16.8]} 43... e2 {[%clk 0:00:20.7]} 0-1